bitfinex/quotes_BTCUSD_20251221
["timestamp","ask_amount","ask_price","bid_price","bid_amount"]
[1766281391270,0.03887863,88194.0,88190.0,1e-06]
[1766281391474,0.02190547,88193.0,88190.0,1e-06]
[1766281391675,0.03887863,88194.0,88190.0,1e-06]
[1766281391877,0.02190663,88193.0,88190.0,1e-06]
[1766281392102,0.01133876,88193.0,88190.0,1e-06]
[1766281392277,0.03661876,88193.0,88190.0,1e-06]
[1766281392467,0.01056846,88192.0,88190.0,1e-06]
[1766281392662,0.03661876,88193.0,88190.0,1e-06]
[1766281393894,0.01056965,88192.0,88190.0,1e-06]
[1766281394094,0.03661876,88193.0,88190.0,1e-06]
[1766281394307,0.01056965,88192.0,88190.0,1e-06]
[1766281394501,0.03661876,88193.0,88190.0,1e-06]
[1766281394781,0.02528,88193.0,88190.0,1e-06]
[1766281395751,0.03661876,88193.0,88190.0,1e-06]
[1766281395897,0.01057188,88192.0,88190.0,1e-06]
[1766281396077,0.03661876,88193.0,88190.0,1e-06]
[1766281396280,0.01057183,88192.0,88190.0,1e-06]
[1766281396484,0.01057183,88191.0,88190.0,1e-06]
[1766281397081,0.01057183,88192.0,88190.0,1e-06]
[1766281397446,0.01057183,88191.0,88190.0,1e-06]
[1766281397587,0.01057183,88192.0,88190.0,1e-06]
[1766281398508,0.01133863,88194.0,88190.0,1e-06]
[1766281399305,0.01133876,88193.0,88190.0,1e-06]
[1766281400726,0.01133863,88194.0,88190.0,1e-06]
[1766281401738,0.01133876,88193.0,88190.0,1e-06]
[1766281401909,0.01133863,88194.0,88190.0,1e-06]
[1766281402114,0.04045851,88195.0,88190.0,1e-06]
[1766281402497,0.02912,88195.0,88190.0,1e-06]
[1766281402897,0.01133863,88194.0,88190.0,1e-06]
[1766281403137,0.04045851,88195.0,88190.0,1e-06]
[1766281404742,0.03135365,88194.0,88179.0,0.0454]
[1766281404918,0.056699,88185.0,88179.0,0.0454]
[1766281405115,0.01133966,88186.0,88179.0,0.0454]
[1766281405824,0.01133953,88187.0,88179.0,0.0454]
[1766281406255,0.03409941,88188.0,88179.0,0.0454]
[1766281406399,0.01133953,88187.0,88179.0,0.0454]
[1766281406805,0.01133966,88186.0,88179.0,0.0454]
[1766281407004,0.01133953,88187.0,88179.0,0.0454]
[1766281407242,0.03190953,88187.0,88179.0,0.0454]
[1766281407424,0.02057,88187.0,88179.0,0.0454]
[1766281408546,0.02002,88187.0,88179.0,0.0454]
[1766281409148,0.01634322,88187.0,88179.0,0.0454]
[1766281409844,0.01133889,88192.0,88179.0,0.0454]
[1766281410448,0.01057789,88191.0,88179.0,0.0454]
[1766281410669,0.01057789,88190.0,88179.0,0.0454]
[1766281410810,0.01133889,88192.0,88179.0,0.0454]
[1766281411016,0.01057789,88191.0,88179.0,0.0454]
[1766281411220,0.01057789,88190.0,88179.0,0.0454]
[1766281411422,0.02361889,88192.0,88179.0,0.0454]
[1766281411659,0.01057787,88191.0,88179.0,0.0454]
[1766281411866,0.01057787,88190.0,88180.0,0.31729916]
[1766281412182,0.01133928,88189.0,88180.0,0.31729916]
[1766281413140,0.01133941,88188.0,88180.0,0.31729916]
[1766281413551,0.08031341,88192.0,88180.0,0.31729916]
[1766281413552,0.05669452,88192.0,88180.0,0.31729916]
[1766281413834,0.01133915,88190.0,88180.0,0.31729916]
[1766281414048,0.01057796,88189.0,88180.0,0.31729916]
[1766281414252,0.01133915,88190.0,88180.0,0.31729916]
[1766281414440,0.0105779,88189.0,88180.0,0.31729916]
[1766281414646,0.11217902,88191.0,88179.0,0.36269916]
[1766281414860,0.021917,88190.0,88179.0,0.36269916]
[1766281415001,0.02191713,88189.0,88179.0,0.36269916]
[1766281415206,0.11217902,88191.0,88179.0,0.36269916]
[1766281415428,0.01057776,88190.0,88179.0,0.36269916]
[1766281415631,0.01057776,88189.0,88179.0,0.36269916]
[1766281415803,0.01133915,88190.0,88179.0,0.36269916]
[1766281416001,0.01057784,88189.0,88179.0,0.36269916]
[1766281416216,0.01133915,88190.0,88179.0,0.36269916]
[1766281416414,0.01057784,88189.0,88179.0,0.36269916]
[1766281416666,0.10084,88191.0,88179.0,0.36269916]
[1766281416872,0.01057781,88190.0,88179.0,0.36269916]
[1766281417125,0.01057781,88189.0,88179.0,0.36269916]
[1766281417263,0.01133889,88192.0,88179.0,0.36269916]
[1766281417460,0.01057798,88191.0,88179.0,0.36269916]
[1766281417691,0.01057798,88190.0,88179.0,0.36269916]
[1766281417896,0.01133902,88191.0,88179.0,0.36269916]
[1766281418070,0.02191704,88190.0,88179.0,0.36269916]
[1766281418402,0.01133902,88191.0,88180.0,0.55382]
[1766281418621,0.0105779,88190.0,88180.0,0.55382]
[1766281418812,0.01133902,88191.0,88180.0,0.26546]
[1766281418980,0.0105778,88190.0,88180.0,0.58275916]
[1766281419179,0.01133902,88191.0,88180.0,0.58275916]
[1766281419379,0.01057779,88190.0,88180.0,0.58275916]
[1766281419583,0.01133902,88191.0,88180.0,0.58275916]
[1766281419804,0.01057779,88190.0,88180.0,0.58275916]
[1766281419984,0.01133889,88192.0,88180.0,0.58275916]
[1766281420204,0.0105778,88191.0,88180.0,0.58275916]
[1766281420367,0.01057802,88190.0,88180.0,0.58275916]
[1766281420575,0.01057769,88189.0,88180.0,0.58275916]
[1766281420776,0.01133889,88192.0,88180.0,0.58275916]
[1766281421036,0.01057791,88191.0,88180.0,0.58275916]
[1766281421206,0.01057791,88190.0,88180.0,0.58275916]
[1766281421409,0.01057791,88189.0,88180.0,0.58275916]
[1766281421608,0.01133889,88192.0,88180.0,0.58275916]
[1766281421811,0.01057792,88191.0,88180.0,0.58275916]
[1766281422122,0.01057792,88190.0,88180.0,0.58275916]
[1766281422327,0.01133876,88193.0,88180.0,0.58275916]
[1766281422328,0.01057792,88189.0,88180.0,0.58275916]
[1766281422532,0.01133889,88192.0,88180.0,0.58275916]
[1766281422836,0.01057797,88191.0,88180.0,0.58275916]
[1766281423037,0.01057797,88190.0,88180.0,0.58275916]
[1766281423245,0.01057797,88189.0,88180.0,0.58278005]
[1766281423536,0.01133889,88192.0,88180.0,0.58278005]
[1766281423743,0.10774801,88191.0,88180.0,0.31732005]
[1766281423900,0.01057801,88190.0,88180.0,0.31732005]
[1766281424238,0.10668801,88190.0,88180.0,0.31732005]
[1766281424438,0.01057801,88189.0,88180.0,0.31732005]
[1766281424734,0.01133889,88192.0,88180.0,0.31732005]
[1766281424969,0.01057835,88191.0,88180.0,0.31732005]
[1766281425173,0.0304643,88193.0,88180.0,0.31732005]
[1766281425354,0.0304643,88194.0,88183.0,0.87114005]
[1766281425559,0.04180293,88194.0,88184.0,0.32300005]
[1766281425764,0.0304643,88194.0,88184.0,0.32300005]
[1766281425949,0.01133863,88194.0,88184.0,0.32300005]
[1766281426564,0.01133876,88193.0,88184.0,0.32300005]
[1766281426760,0.10599863,88194.0,88184.0,0.32300005]
[1766281427166,0.09466,88194.0,88184.0,0.32300005]
[1766281427690,0.04180281,88195.0,88184.0,0.32300005]
[1766281428191,0.04180268,88196.0,88184.0,0.32300005]
[1766281428433,0.13435268,88196.0,88184.0,0.32300005]
[1766281428613,0.09255,88195.0,88184.0,0.32300005]
[1766281430116,0.10388851,88195.0,88184.0,0.32300005]
[1766281430328,0.09255,88195.0,88184.0,0.32300005]
[1766281430479,0.10388851,88195.0,88184.0,0.32300005]
[1766281430900,0.0304643,88196.0,88184.0,0.32300005]
[1766281431098,0.0304643,88196.0,88184.0,0.87682005]
[1766281431317,0.0304643,88196.0,88184.0,0.87114005]
[1766281431517,0.0680334,88192.0,88183.0,0.00568]
[1766281431879,0.10075876,88193.0,88183.0,0.00568]
[1766281432057,0.01133902,88191.0,88183.0,0.00568]
[1766281432439,0.10075876,88193.0,88183.0,0.00568]
[1766281432621,0.01133889,88192.0,88183.0,0.00568]
[1766281434211,0.09793876,88193.0,88183.0,0.00568]
[1766281435227,0.01133889,88192.0,88183.0,0.00568]
[1766281435370,0.09793876,88193.0,88183.0,0.00568]
[1766281436007,0.01133928,88189.0,88183.0,0.00568]
[1766281436186,0.09793876,88193.0,88183.0,0.00568]
[1766281436609,0.01133902,88191.0,88183.0,0.00568]
[1766281437158,0.01057479,88190.0,88183.0,0.00568]
[1766281437374,0.01133889,88192.0,88183.0,0.00568]
[1766281437595,0.01057523,88191.0,88183.0,0.00568]
[1766281437812,0.01057523,88190.0,88183.0,0.00568]
[1766281438001,0.01133902,88191.0,88183.0,0.00568]
[1766281438200,0.01057517,88190.0,88183.0,0.00568]
[1766281438406,0.09382889,88192.0,88183.0,0.00568]
[1766281438631,0.01057526,88191.0,88183.0,0.00568]
[1766281438844,0.01057526,88190.0,88183.0,0.00568]
[1766281439063,0.09382889,88192.0,88183.0,0.00568]
[1766281439280,0.01057516,88191.0,88183.0,0.00568]
[1766281439533,0.01057516,88190.0,88183.0,0.00568]
[1766281439709,0.08249,88192.0,88183.0,0.00568]
[1766281440063,0.01057473,88191.0,88183.0,0.00568]
[1766281440272,0.01057473,88190.0,88183.0,0.00568]
[1766281440477,0.08249,88192.0,88183.0,0.00568]
[1766281440683,0.01057456,88191.0,88183.0,0.00568]
[1766281440921,0.01057456,88190.0,88183.0,0.00568]
[1766281441145,0.08249,88192.0,88190.0,0.000549]
[1766281441376,0.08249,88192.0,88191.0,0.00568]
[1766281441610,0.01057459,88192.0,88191.0,0.00568]
[1766281444073,0.01133915,88190.0,88182.0,0.31732005]
[1766281444297,0.01133915,88190.0,88183.0,0.00568]
[1766281444483,0.01133902,88191.0,88183.0,0.00568]
[1766281444612,0.01057366,88190.0,88183.0,0.00568]
[1766281444831,0.06803282,88193.0,88183.0,0.00568]
[1766281445060,0.01133902,88191.0,88183.0,0.32300005]
[1766281445250,0.01057366,88190.0,88183.0,0.00568]
[1766281445457,0.01133889,88192.0,88183.0,0.00568]
[1766281445660,0.01057375,88191.0,88183.0,0.00568]
[1766281445878,0.01057375,88190.0,88183.0,0.00568]
[1766281446078,0.01133889,88192.0,88183.0,0.00568]
[1766281446288,0.01057375,88191.0,88183.0,0.00568]
[1766281446492,0.01057375,88190.0,88183.0,0.00568]
[1766281446694,0.01133889,88192.0,88183.0,0.00568]
[1766281446906,0.01057387,88191.0,88183.0,0.00568]
[1766281447126,0.01057387,88190.0,88183.0,0.00568]
[1766281447329,0.04180293,88194.0,88183.0,0.00568]
[1766281447576,0.0105739,88193.0,88183.0,0.32300005]
[1766281447751,0.0105739,88192.0,88183.0,0.00568]
[1766281447954,0.0105739,88191.0,88183.0,0.00568]
[1766281448174,0.08411876,88193.0,88183.0,0.00568]
[1766281448518,0.01057335,88192.0,88183.0,0.00568]
[1766281448820,0.08235335,88191.0,88183.0,0.00568]
[1766281449044,0.01057335,88190.0,88183.0,0.00568]
[1766281449225,0.07178,88191.0,88183.0,0.00568]
[1766281449428,0.0105733,88190.0,88183.0,0.00568]
[1766281449730,0.07178,88191.0,88183.0,0.00568]
[1766281449934,0.01057339,88190.0,88183.0,0.00568]
[1766281450186,0.07178,88191.0,88183.0,0.00568]
[1766281450372,0.01057343,88190.0,88183.0,0.00568]
[1766281450582,0.07178,88191.0,88183.0,0.00568]
[1766281450805,0.01057339,88190.0,88183.0,0.00568]
[1766281450995,0.07178,88191.0,88183.0,0.00568]
[1766281451202,0.01057353,88190.0,88183.0,0.00568]
[1766281451375,0.01133876,88193.0,88183.0,0.00568]
[1766281451580,0.01057355,88192.0,88183.0,0.00568]
[1766281451784,0.01057355,88191.0,88183.0,0.00568]
[1766281452002,0.01057355,88190.0,88183.0,0.00568]
[1766281452150,0.01133902,88191.0,88183.0,0.00568]
[1766281452349,0.01057343,88190.0,88183.0,0.00568]
[1766281452550,0.01133889,88192.0,88183.0,0.00568]
[1766281452749,0.01057349,88191.0,88183.0,0.00568]
[1766281453002,0.01057349,88190.0,88183.0,0.00568]
[1766281453223,0.01133902,88191.0,88183.0,0.00568]
[1766281453419,0.01057344,88190.0,88183.0,0.00568]
[1766281453609,0.01133902,88191.0,88183.0,0.00568]
[1766281453914,0.01057344,88190.0,88183.0,0.00568]
[1766281454112,0.01133889,88192.0,88183.0,0.00568]
[1766281454289,0.01057338,88191.0,88183.0,0.00568]
[1766281454645,0.08014876,88193.0,88183.0,0.00568]
[1766281454646,0.01057338,88190.0,88183.0,0.00568]
[1766281454919,0.04180293,88194.0,88183.0,0.00568]
[1766281455148,0.01057344,88193.0,88183.0,0.00568]
[1766281455376,0.01057344,88192.0,88183.0,0.00568]
[1766281455606,0.01057344,88191.0,88183.0,0.00568]
[1766281455791,0.01057344,88190.0,88183.0,0.00568]
[1766281455994,0.04180293,88194.0,88183.0,0.00568]
[1766281456195,0.01057346,88193.0,88183.0,0.00568]
[1766281456398,0.01057346,88192.0,88183.0,0.00568]
[1766281456606,0.01057346,88191.0,88183.0,0.00568]
[1766281456779,0.01057346,88190.0,88183.0,0.00568]
[1766281456980,0.01133863,88194.0,88183.0,0.00568]
[1766281457186,0.01057347,88193.0,88183.0,0.00568]
[1766281457389,0.01057347,88192.0,88183.0,0.00568]
[1766281457590,0.01057347,88191.0,88183.0,0.00568]
[1766281457775,0.01057347,88190.0,88184.0,0.27309]
[1766281457977,0.01133863,88194.0,88184.0,0.27309]
[1766281458196,0.01057314,88193.0,88184.0,0.27309]
[1766281458398,0.01057314,88192.0,88184.0,0.27309]
[1766281458603,0.01057314,88191.0,88184.0,0.27309]
[1766281458763,0.01057314,88190.0,88184.0,0.27309]
[1766281458963,0.01133876,88193.0,88184.0,0.27309]
[1766281459183,0.01057257,88192.0,88184.0,0.27309]
[1766281459442,0.01057257,88191.0,88184.0,0.27309]
[1766281459582,0.01057257,88190.0,88184.0,0.51749]
[1766281459780,0.01133863,88194.0,88184.0,0.51749]
[1766281459999,0.01057293,88193.0,88184.0,0.51749]
[1766281460193,0.01057293,88192.0,88184.0,0.51749]
[1766281460383,0.01057293,88191.0,88184.0,0.51749]
[1766281460602,0.01057293,88190.0,88184.0,0.51749]
[1766281460805,0.01133863,88194.0,88184.0,0.51749]
[1766281461047,0.01057291,88193.0,88184.0,0.51749]
[1766281461249,0.01057291,88192.0,88184.0,0.51749]
[1766281461580,0.01057291,88191.0,88184.0,0.51749]
[1766281461746,0.01057291,88190.0,88184.0,0.51749]
[1766281461973,0.01133876,88193.0,88184.0,0.51749]
[1766281462142,0.01057339,88192.0,88184.0,0.51749]
[1766281462361,0.01057339,88191.0,88184.0,0.51749]
[1766281462560,0.01057339,88190.0,88184.0,0.51749]
[1766281462760,0.0758796,88194.0,88184.0,0.51749]
[1766281462986,0.01057333,88193.0,88184.0,0.51749]
[1766281463304,0.01057333,88192.0,88184.0,0.51749]
[1766281463507,0.01057333,88191.0,88184.0,0.51749]
[1766281463712,0.01057333,88190.0,88184.0,0.51749]
[1766281463886,0.01133876,88193.0,88184.0,0.51749]
[1766281464088,0.01057332,88192.0,88184.0,0.51749]
[1766281464286,0.01057332,88191.0,88184.0,0.51749]
[1766281464538,0.01057332,88190.0,88184.0,0.51749]
[1766281464751,0.01133876,88193.0,88184.0,0.51749]
[1766281465068,0.01057332,88192.0,88184.0,0.51749]
[1766281465298,0.01057332,88191.0,88184.0,0.51749]
[1766281465507,0.01057332,88190.0,88184.0,0.51749]
[1766281465691,0.01133876,88193.0,88184.0,0.51749]
[1766281465908,0.01057334,88192.0,88184.0,0.51749]
[1766281466130,0.05480684,88197.0,88191.0,0.27309]
[1766281466359,0.05480684,88197.0,88183.0,0.00568]
[1766281466360,0.01133773,88201.0,88193.0,0.27309]
[1766281466576,0.05668805,88202.0,88193.0,0.27309]
[1766281466780,0.01133786,88200.0,88193.0,0.271991]
[1766281467209,0.01133799,88199.0,88193.0,0.271991]
[1766281467621,0.01133812,88198.0,88193.0,0.271991]
[1766281467830,0.01133786,88200.0,88193.0,0.271991]
[1766281468293,0.01133786,88200.0,88194.0,0.2444]
[1766281468551,0.01133799,88199.0,88194.0,0.2444]
[1766281468773,0.01133799,88199.0,88194.0,0.51749]
[1766281468939,0.01133812,88198.0,88194.0,0.51749]
[1766281469157,0.01133812,88198.0,88195.0,0.27309]
[1766281469544,0.01133799,88199.0,88195.0,0.27309]
[1766281470148,0.01133812,88198.0,88195.0,0.27309]
[1766281470383,0.01133799,88199.0,88195.0,0.27309]
[1766281471091,0.01133786,88200.0,88195.0,0.27309]
[1766281471231,0.01133812,88198.0,88195.0,0.27309]
[1766281471829,0.01133799,88199.0,88195.0,0.27309]
[1766281473469,0.01133812,88198.0,88195.0,0.27309]
[1766281473660,0.01133812,88198.0,88194.0,0.2444]
[1766281474391,0.01133799,88199.0,88194.0,0.2444]
[1766281474573,0.01133786,88200.0,88194.0,0.2444]
[1766281475014,0.01133799,88199.0,88194.0,0.2444]
[1766281475227,0.01133799,88199.0,88192.0,0.00568]
[1766281475228,0.05669384,88193.0,88192.0,0.00568]
[1766281475433,0.01133838,88196.0,88193.0,0.000549]
[1766281475700,0.01133851,88195.0,88192.0,0.00568]
[1766281475870,0.01133838,88196.0,88192.0,0.00568]
[1766281477906,0.01133851,88195.0,88192.0,0.00568]
[1766281478306,0.01133838,88196.0,88192.0,0.00568]
[1766281479052,0.01133851,88195.0,88192.0,0.00568]
[1766281479202,0.01133838,88196.0,88192.0,0.00568]
[1766281480164,0.22673769,88208.0,88197.0,0.26775]
[1766281480165,0.05668856,88202.0,88197.0,0.26775]
[1766281480385,0.01133786,88200.0,88198.0,0.00568]
[1766281480594,0.01134046,88204.0,88198.0,0.00568]
[1766281480798,0.01133761,88202.0,88198.0,0.00568]
[1766281481235,0.01133773,88201.0,88198.0,0.00568]
[1766281482026,0.01133773,88201.0,88199.0,0.24944]
[1766281482225,0.01133773,88201.0,88199.0,0.39467019]
[1766281482441,0.01133773,88201.0,88200.0,0.26775]
[1766281483815,0.06802743,88204.0,88200.0,0.26775]
[1766281484008,0.01133748,88203.0,88200.0,0.26775]
[1766281484232,0.01133748,88203.0,88200.0,0.51719]
[1766281484440,0.01133748,88203.0,88201.0,0.26775]
[1766281484880,0.22672909,88211.0,88203.0,0.26775]
[1766281485087,0.23240909,88211.0,88203.0,0.26775]
[1766281485302,0.20794,88217.0,88211.0,0.000549]
[1766281485303,0.01133594,88215.0,88211.0,0.000549]
[1766281485594,0.01133594,88215.0,88204.0,0.00568]
[1766281485796,0.24858,88212.0,88204.0,0.00568]
[1766281485950,0.24858,88210.0,88204.0,0.00568]
[1766281490882,5.294e-05,88212.0,88204.0,0.00568]
[1766281491107,5.294e-05,88212.0,88210.0,0.00055]
[1766281491334,5.294e-05,88212.0,88211.0,0.00568]
[1766281491762,0.01133504,88222.0,88212.0,0.26775]
[1766281491983,0.01133504,88222.0,88214.0,0.26775]
[1766281492188,0.01133594,88223.0,88214.0,0.26775]
[1766281492385,0.02267085,88223.0,88214.0,0.26775]
[1766281492926,0.01133504,88222.0,88213.0,0.24944]
[1766281493127,0.01133516,88221.0,88213.0,0.24944]
[1766281493549,0.01133504,88222.0,88213.0,0.24944]
[1766281493710,0.00792504,88222.0,88213.0,0.24944]
[1766281494392,0.01133516,88221.0,88213.0,0.24944]
[1766281495970,0.25991516,88221.0,88211.0,0.00568]
[1766281496383,0.29398506,88221.0,88211.0,0.00568]
[1766281496746,0.24858,88221.0,88211.0,0.00568]
[1766281497144,0.03406874,88222.0,88213.0,0.26775]
[1766281497345,0.24858,88225.0,88213.0,0.26775]
[1766281497777,0.28264777,88225.0,88213.0,0.26775]
[1766281497963,0.24858,88225.0,88213.0,0.26775]
[1766281498290,0.03406777,88224.0,88213.0,0.26775]
[1766281499395,0.28264777,88224.0,88213.0,0.26775]
[1766281499917,0.24858,88224.0,88213.0,0.26775]
[1766281500096,0.03406777,88223.0,88213.0,0.26775]
[1766281501118,0.04540268,88223.0,88213.0,0.267201]
[1766281501535,0.01133504,88222.0,88213.0,0.267201]
[1766281501735,0.03406777,88223.0,88214.0,0.24944]
[1766281502049,0.01133452,88226.0,88214.0,0.24944]
[1766281502205,0.01133414,88229.0,88214.0,0.24944]
[1766281502543,0.06800494,88229.0,88214.0,0.24944]
[1766281502903,0.25991427,88228.0,88214.0,0.24944]
[1766281503278,0.24858,88227.0,88214.0,0.24944]
[1766281503845,0.24858,88226.0,88214.0,0.24944]
[1766281504382,0.25991452,88226.0,88214.0,0.24944]
[1766281504655,0.24858,88225.0,88214.0,0.24944]
[1766281504956,0.25991465,88225.0,88214.0,0.24944]
[1766281505916,0.47367465,88225.0,88211.0,0.00568]
[1766281506166,0.26419,88223.0,88211.0,0.00568]
[1766281506396,0.47795,88222.0,88211.0,0.00568]
[1766281506619,0.26419,88221.0,88211.0,0.00568]
[1766281506797,0.06800871,88224.0,88212.0,0.27673]
[1766281507028,0.06116392,88243.0,88214.0,0.27673]
[1766281507029,0.26419,88226.0,88214.0,0.27673]
[1766281507228,0.26419,88225.0,88215.0,0.31710857]
[1766281507448,0.26419,88225.0,88216.0,0.00568]
[1766281514098,0.26419,88225.0,88216.0,0.28241]
[1766281514420,0.01133504,88222.0,88216.0,0.005131]
[1766281514627,0.26419,88222.0,88216.0,0.005131]
[1766281515028,0.01133465,88225.0,88216.0,0.005131]
[1766281515387,0.01133465,88225.0,88217.0,0.15581411]
[1766281515597,0.01133465,88225.0,88216.0,0.25335001]
[1766281515598,0.01133465,88225.0,88218.0,0.25335]
[1766281515799,0.01133452,88226.0,88218.0,0.25335]
[1766281516999,0.10207219,88228.0,88218.0,0.13980596]
[1766281517000,0.01133439,88227.0,88218.0,0.13980596]
[1766281517442,0.01133439,88227.0,88219.0,0.27673]
[1766281517443,0.01133452,88226.0,88219.0,0.27673]
[1766281517702,0.01133439,88227.0,88219.0,0.27673]
[1766281518150,0.01133452,88226.0,88219.0,0.27673]
[1766281518760,0.01133439,88227.0,88219.0,0.27673]
[1766281518963,0.01133452,88226.0,88220.0,0.27673]
[1766281519199,0.01133452,88226.0,88221.0,0.28241]
[1766281519833,0.01133452,88226.0,88221.0,0.27678677]
[1766281520732,0.01133439,88227.0,88221.0,0.53013677]
[1766281520959,0.01133439,88227.0,88222.0,0.27673]
[1766281521162,0.01133452,88226.0,88222.0,0.27673]
[1766281522141,0.01133439,88227.0,88222.0,0.27673]
[1766281522345,0.01133452,88226.0,88222.0,0.27673]
[1766281522853,0.01133439,88227.0,88221.0,0.25340677]
[1766281523060,0.01133439,88227.0,88223.0,0.27673]
[1766281523835,0.01133452,88226.0,88223.0,0.27673]
[1766281524017,0.03406599,88227.0,88223.0,0.27673]
[1766281524431,0.03351699,88227.0,88223.0,0.27673]
[1766281524630,0.01133311,88237.0,88221.0,5.677e-05]
[1766281524631,0.06234556,88238.0,88227.0,0.26069]
[1766281524830,0.04539758,88235.0,88227.0,0.52781]
[1766281525039,0.01133337,88235.0,88226.0,0.00568]
[1766281525187,0.01133349,88234.0,88227.0,0.00568]
[1766281525405,0.53962,88236.0,88227.0,0.00568]
[1766281525631,0.53962,88235.0,88227.0,0.00568]
[1766281525805,0.26264,88235.0,88227.0,0.00568]
[1766281526057,0.53962,88235.0,88227.0,0.00568]
[1766281526257,0.53962,88236.0,88227.0,0.00568]
[1766281526458,0.0114408,88238.0,88227.0,0.00568]
[1766281527063,0.00010782,88238.0,88227.0,0.00568]
[1766281527268,0.53962,88237.0,88227.0,0.00568]
[1766281527799,0.00010782,88238.0,88227.0,0.00568]
[1766281528098,0.26264,88234.0,88227.0,0.00568]
[1766281528318,0.27698,88231.0,88227.0,0.00568]
[1766281528465,0.27698,88230.0,88227.0,0.00568]
[1766281530071,0.27643,88230.0,88227.0,0.00568]
[1766281532252,0.00047019,88227.0,88225.0,0.00568]
[1766281532505,0.27698,88237.0,88225.0,0.00568]
[1766281532724,0.0304386,88241.0,88225.0,0.00568]
[1766281532725,0.0113326,88241.0,88227.0,0.31704188]
[1766281532923,0.27698,88239.0,88227.0,0.31704188]
[1766281533156,0.27698,88239.0,88227.0,0.58416188]
[1766281533707,0.27698,88239.0,88227.0,0.31704188]
[1766281533916,0.27698,88239.0,88228.0,0.26712]
[1766281535106,0.28831285,88239.0,88228.0,0.26712]
[1766281535310,0.28064,88237.0,88227.0,0.31704188]
[1766281537127,0.28064,88237.0,88227.0,0.58371188]
[1766281537740,0.28064,88237.0,88227.0,0.31704188]
[1766281537932,0.28074782,88238.0,88228.0,0.00568]
[1766281538121,0.31480948,88238.0,88229.0,0.00568]
[1766281538753,0.32614246,88238.0,88229.0,0.00568]
[1766281539319,0.31480948,88238.0,88229.0,0.00568]
[1766281539532,0.31426048,88238.0,88229.0,0.00568]
[1766281539949,0.28019882,88238.0,88229.0,0.00568]
[1766281540580,0.00027357,88243.0,88229.0,0.00568]
[1766281540801,0.00027357,88243.0,88231.0,0.54177]
[1766281541461,0.28285591,88243.0,88231.0,0.2751]
[1766281541675,0.28064,88242.0,88231.0,0.2751]
[1766281542782,0.28064,88242.0,88231.0,0.54177]
[1766281543125,0.00027357,88243.0,88234.0,0.26667]
[1766281543331,0.00027357,88243.0,88235.0,0.00568]
[1766281544285,0.28091357,88243.0,88235.0,0.00568]
[1766281545513,0.28064,88242.0,88235.0,0.00568]
[1766281546335,0.00027357,88243.0,88236.0,0.26667]
[1766281546633,0.01160591,88243.0,88236.0,0.26667]
[1766281546766,0.12924433,88248.0,88236.0,0.26667]
[1766281546982,0.01133157,88249.0,88236.0,0.26667]
[1766281547415,0.01133208,88245.0,88236.0,0.26667]
[1766281547950,0.01133195,88246.0,88236.0,0.26667]
[1766281548884,0.04539151,88247.0,88239.0,0.2751]
[1766281549088,0.04539151,88247.0,88236.0,0.26667]
[1766281549503,0.01133195,88246.0,88236.0,0.26667]
[1766281549987,0.01133182,88247.0,88236.0,0.26667]
[1766281550152,0.01133195,88246.0,88236.0,0.26667]
[1766281550770,0.01133208,88245.0,88236.0,0.26667]
[1766281550968,0.01133195,88246.0,88239.0,0.2751]
[1766281551219,0.01133195,88246.0,88241.0,0.26667]
[1766281551495,0.01133195,88246.0,88242.0,0.005131]
[1766281551496,0.01133208,88245.0,88242.0,0.005131]
[1766281551876,0.01133182,88247.0,88243.0,0.26667]
[1766281552077,0.01133208,88246.0,88243.0,0.26667]
[1766281552240,0.01133208,88246.0,88243.0,0.26612]
[1766281553584,0.02266403,88246.0,88243.0,0.26612]
[1766281554452,0.05666043,88245.0,88243.0,0.26612]
[1766281555239,0.06799251,88245.0,88242.0,0.005131]
[1766281556052,0.06799251,88245.0,88242.0,1e-06]
[1766281556257,0.55189,88243.0,88242.0,1e-06]
[1766281556494,0.60855171,88243.0,88242.0,1e-06]
[1766281557631,0.55189,88243.0,88242.0,1e-06]
[1766281559351,0.60855171,88243.0,88242.0,1e-06]
[1766281559544,0.55189,88243.0,88242.0,1e-06]
[1766281561081,0.60855171,88243.0,88242.0,1e-06]
[1766281561459,0.55189,88243.0,88242.0,1e-06]
[1766281562459,0.551341,88243.0,88242.0,1e-06]
[1766281563748,0.01133208,88245.0,88242.0,1e-06]
[1766281564766,0.31883208,88245.0,88242.0,1e-06]
[1766281565716,0.3075,88245.0,88242.0,1e-06]
[1766281566425,0.58745208,88245.0,88242.0,1e-06]
[1766281566636,0.57612,88245.0,88242.0,1e-06]
[1766281569889,0.3075,88244.0,88242.0,1e-06]
[1766281579798,0.03041669,88247.0,88244.0,0.00055]
[1766281579998,0.03041669,88248.0,88244.0,0.00055]
[1766281580128,0.03041669,88248.0,88242.0,1e-06]
[1766281580333,0.06472214,88251.0,88242.0,1e-06]
[1766281582349,0.03430545,88251.0,88242.0,1e-06]
[1766281584718,0.56102,88250.0,88242.0,1e-06]
[1766281586132,0.31797057,88280.0,88242.0,1e-06]
[1766281586133,0.04174736,88256.0,88242.0,1e-06]
[1766281586340,0.0340583,88252.0,88251.0,0.21363885]
[1766281586534,0.01133041,88258.0,88251.0,0.21363885]
[1766281586744,0.01133067,88256.0,88251.0,0.21363885]
[1766281586977,0.01133067,88256.0,88249.0,0.00568]
[1766281587171,0.01133054,88257.0,88249.0,0.00568]
[1766281588435,0.062679,88259.0,88249.0,0.00568]
[1766281588593,0.27784016,88260.0,88249.0,0.00568]
[1766281588980,0.26651,88259.0,88249.0,0.00568]
[1766281589234,0.26651,88258.0,88249.0,0.00568]
[1766281589417,0.29451,88258.0,88249.0,0.00568]
[1766281589618,0.56102,88258.0,88249.0,0.00568]
[1766281590407,0.26651,88257.0,88249.0,0.00568]
[1766281590818,0.56102,88257.0,88249.0,0.00568]
[1766281591273,0.56102,88257.0,88242.0,0.0340564]
[1766281591274,0.56102,88254.0,88242.0,0.0340564]
[1766281591477,0.561569,88249.0,88243.0,0.00568]
[1766281591622,0.295059,88249.0,88243.0,0.00568]
[1766281591841,0.29451,88255.0,88243.0,0.00568]
[1766281592053,0.01133093,88254.0,88243.0,0.00568]
[1766281593335,0.3058408,88255.0,88243.0,0.00568]
[1766281593980,0.29451,88255.0,88243.0,0.18279]
[1766281595265,0.58929,88255.0,88243.0,0.18279]